fUSD/lending_fUSD_20250724
["ID","MTS","AMOUNT","RATE_DAILY","PERIOD"]
[374622210,1753384234178,-500.0,0.00035837,15]
[374622211,1753384234190,-500.0,0.00035837,15]
[374622212,1753384234199,-245.84649713,0.00035837,15]
[374622213,1753384234209,-500.0,0.00035837,2]
[374622214,1753384234219,-500.0,0.00035837,15]
[374622215,1753384234229,-312.3265747,0.00035837,15]
[374622216,1753384234239,-500.0,0.00035837,15]
[374622217,1753384234249,-527.14149652,0.00035837,15]
[374622218,1753384234259,-500.0,0.00035837,15]
[374622219,1753384234271,-500.0,0.00035837,15]
[374622220,1753384234281,-500.0,0.00035837,2]
[374622221,1753384234291,-500.0,0.00035837,15]
[374622222,1753384234303,-500.0,0.00035837,15]
[374622223,1753384234322,-372.19512923,0.00035837,2]
[374622224,1753384234334,-500.0,0.00035837,15]
[374622225,1753384234343,-500.0,0.00035837,15]
[374622226,1753384234352,-500.0,0.00035837,15]
[374622227,1753384234363,-500.0,0.00035837,15]
[374622228,1753384234372,-500.0,0.00035837,15]
[374622229,1753384234382,-500.0,0.00035837,15]
[374622230,1753384234391,-500.0,0.00035837,15]
[374622231,1753384234400,-310.93917231,0.00035837,15]
[374622232,1753384234411,-500.0,0.00035837,15]
[374622233,1753384234421,-500.0,0.00035837,15]
[374622234,1753384234430,-850.01431196,0.00035837,15]
[374622235,1753384234441,-500.0,0.00035837,15]
[374622236,1753384234451,-850.01431196,0.00035837,15]
[374622237,1753384234461,-850.01431196,0.00035837,15]
[374622238,1753384234471,-500.0,0.00035837,15]
[374622239,1753384234481,-850.01431196,0.00035837,15]
[374622240,1753384234491,-850.01431196,0.00035837,15]
[374622241,1753384234501,-850.01431196,0.00035837,15]
[374622242,1753384234512,-500.0,0.00035837,15]
[374622243,1753384234523,-850.01431196,0.00035837,15]
[374622244,1753384234533,-850.01431196,0.00035837,15]
[374622245,1753384234542,-300.0,0.00035837,15]
[374622246,1753384234552,-850.01431196,0.00035837,15]
[374622247,1753384234562,-850.01431196,0.00035837,15]
[374622248,1753384234571,-200.0,0.00035837,15]
[374622249,1753384234581,-850.01431196,0.00035837,15]
[374622250,1753384234595,-850.01431196,0.00035837,15]
[374622251,1753384234606,-850.01431196,0.00035837,15]
[374622252,1753384234616,-850.01431196,0.00035837,15]
[374622253,1753384234626,-850.01431196,0.00035837,15]
[374622254,1753384234636,-850.01431196,0.00035837,15]
[374622255,1753384234649,-850.01431196,0.00035837,15]
[374622256,1753384234659,-850.01431196,0.00035837,15]
[374622257,1753384234668,-850.01431196,0.00035837,15]
[374622258,1753384234678,-850.01431196,0.00035837,15]
[374622259,1753384234687,-850.01431196,0.00035837,15]
[374622260,1753384234698,-850.01431196,0.00035837,15]
[374622261,1753384234707,-850.01431196,0.00035837,15]
[374622262,1753384234718,-850.01431196,0.00035837,15]
[374622263,1753384234727,-850.01431196,0.00035837,15]
[374622264,1753384234738,-719.66817212,0.00035837,15]
[374622265,1753384236663,-130.34613984,0.00035837,15]
[374622266,1753384236674,-173.11711952,0.00035837,15]
[374622267,1753384237964,-676.89719244,0.00035837,15]
[374622268,1753384237975,-850.01431196,0.00035837,15]
[374622269,1753384237986,-850.01431196,0.00035837,15]
[374622270,1753384237997,-366.07759212,0.00035837,15]
[374622271,1753384238019,-483.93671984,0.00035837,15]
[374622272,1753384238031,-850.01431196,0.00035837,15]
[374622273,1753384238041,-850.01431196,0.00035837,15]
[374622274,1753384238051,-850.01431196,0.00035837,15]
[374622275,1753384238061,-850.01431196,0.00035837,15]
[374622276,1753384238071,-850.01431196,0.00035837,15]
[374622277,1753384238082,-850.01431196,0.00035837,15]
[374622278,1753384238092,-850.01431196,0.00035837,15]
[374622279,1753384238102,-850.01431196,0.00035837,15]
[374622280,1753384238112,-850.01431196,0.00035837,15]
[374622281,1753384238122,-850.01431196,0.00035837,15]
[374622282,1753384238131,-850.01431196,0.00035837,15]
[374622283,1753384238140,-850.01431196,0.00035837,15]
[374622284,1753384238150,-850.01431196,0.00035837,15]
[374622285,1753384238159,-850.01431196,0.00035837,15]
[374622286,1753384238169,-850.01431196,0.00035837,15]
[374622287,1753384238179,-850.01431196,0.00035837,15]
[374622288,1753384238188,-21.49813913,0.00035837,15]
[374622289,1753384238200,-828.51617283,0.00035837,15]
[374622290,1753384238209,-850.01431196,0.00035837,15]
[374622291,1753384238219,-850.01431196,0.00035837,15]
[374622292,1753384238228,-105.73786673,0.00035837,15]
[374622293,1753384238240,-744.27644523,0.00035837,15]
[374622294,1753384238251,-850.01431196,0.00035837,15]
[374622295,1753384238260,-850.01431196,0.00035837,15]
[374622296,1753384238271,-850.01431196,0.00035837,15]
[374622297,1753384238280,-352.4488901,0.00035837,15]
[374622299,1753384238296,-497.56542186,0.00035837,15]
[374622301,1753384238306,-321.92691127,0.00035837,15]
[374622303,1753384238318,-528.08740069,0.00035837,15]
[374622305,1753384238328,-850.01431196,0.00035837,15]
[374622307,1753384238337,-850.01431196,0.00035837,15]
[374622309,1753384238348,-850.01431196,0.00035837,15]
[374622311,1753384238357,-850.01431196,0.00035837,15]
[374622313,1753384238367,-850.01431196,0.00035837,15]
[374622315,1753384238377,-850.01431197,0.00035837,15]
[374622317,1753384238389,-850.01431197,0.00035837,15]
[374622319,1753384238399,-850.01431197,0.00035837,15]
[374622321,1753384238408,-850.01431197,0.00035837,15]
[374622323,1753384238418,-850.01431197,0.00035837,15]
[374622324,1753384238427,-850.01431197,0.00035837,15]
[374622325,1753384238439,-850.01431197,0.00035837,15]
[374622326,1753384238448,-850.01431197,0.00035837,15]
[374622327,1753384238459,-850.01431197,0.00035837,15]
[374622328,1753384238468,-850.01431197,0.00035837,15]
[374622329,1753384238477,-850.01431197,0.00035837,15]
[374622330,1753384238487,-196.08360784,0.00035837,15]
[374622331,1753384238519,-653.93070413,0.00035837,15]
[374622332,1753384238531,-850.01431197,0.00035837,15]
[374622333,1753384238540,-850.01431197,0.00035837,15]
[374622334,1753384238550,-850.01431197,0.00035837,15]
[374622335,1753384238559,-850.01431197,0.00035837,15]
[374622336,1753384238569,-850.01431197,0.00035837,15]
[374622338,1753384238579,-850.01431197,0.00035837,15]
[374622340,1753384238588,-850.01431197,0.00035837,15]
[374622342,1753384238598,-83.56259079,0.00035837,15]
[374622345,1753384238610,-766.45172118,0.00035837,15]
[374622347,1753384238619,-850.01431197,0.00035837,15]
[374622349,1753384238628,-850.01431197,0.00035837,15]
[374622351,1753384238638,-850.01431197,0.00035837,15]
[374622352,1753384238650,-850.01431197,0.00035837,15]
[374622354,1753384238660,-850.01431197,0.00035837,15]
[374622356,1753384238670,-850.01431197,0.00035837,15]
[374622359,1753384238679,-850.01431197,0.00035837,15]
[374622361,1753384238689,-850.01431197,0.00035837,15]
[374622362,1753384238699,-850.01431197,0.00035837,15]
[374622364,1753384238709,-850.01431197,0.00035837,15]
[374622366,1753384238719,-203.93509512,0.00035837,2]
[374622368,1753384238729,-187.172859,0.00035837,2]
[374622371,1753384238741,-16.76223612,0.00035837,2]
[374622373,1753384238751,-203.93509512,0.00035837,2]
[374622375,1753384238760,-184.03460724,0.00035837,2]
[374622377,1753384238770,-248.90640316,0.00035838,2]
[374622379,1753384238781,-68104.19176368,0.00035838,30]
[374622381,1753384238793,-4376.43006999,0.00035838,30]
[374622383,1753384238804,-1628.599985,0.00035838,30]
[374622388,1753384238836,-1372.58825775,0.00035838,30]
[374622515,1753384240175,-19145.72227245,0.00035838,30]
[374622527,1753384240282,-1112.7700185,0.00035838,30]
[374622533,1753384240335,-1479.85,0.00035838,30]
[374622535,1753384240346,-1134.96726031,0.00035838,30]
[374622538,1753384240358,-525.92440326,0.00035838,30]
[374622886,1753384243863,-625234.35036196,0.00035838,30]
[374622894,1753384243933,-3228.84136853,0.00035838,30]
[374622896,1753384243944,-2659.09954088,0.00035838,30]
[374622906,1753384244023,-608.022,0.00035838,30]
[374623111,1753384246079,-1630.45,0.00035837,17]
[374623113,1753384246091,-568.2,0.00035837,17]
[374625351,1753384528063,159.59,0.00013699,2]
[374625357,1753384802812,300.0,0.000242,120]
[374625358,1753384803983,300.0,0.000242,120]
[374625362,1753385108397,14840.41,0.00019,2]
[374625363,1753385108444,15000.0,0.00019,2]
[374625364,1753385108478,15000.0,0.00019,2]
[374625365,1753385108505,15000.0,0.00019,2]
[374625366,1753385109124,15000.0,0.00019,2]
[374625367,1753385109148,15000.0,0.00019,2]
[374625368,1753385109170,15000.0,0.00019,2]
[374625369,1753385109193,15000.0,0.00019,2]
[374625370,1753385109216,15000.0,0.00019,2]
[374625371,1753385109239,13235.58289401,0.00019,2]
[374625372,1753385129122,1764.41710599,0.000199,2]
[374625373,1753385129144,1191.08289401,0.000199,2]
[374625417,1753385434255,-150.0,0.00022,2]
[374625418,1753385434267,-250.0,0.0002299,2]
[374625419,1753385434277,-291.34861141,0.000231,2]
[374625420,1753385434287,-47.08125878,0.000231,2]
[374625421,1753385434300,-147.15114883,0.000231,2]
[374625422,1753385434311,-941.6587762,0.00023979,2]
[374625423,1753385434323,-18.59732475,0.00023979,2]
[374625424,1753385434334,-250.0,0.000242,2]
[374625425,1753385434344,-163.0,0.00025,7]
[374625426,1753385434358,-676.47950191,0.00025999,2]
[374625427,1753385434370,-523.52049809,0.00025999,2]
[374625428,1753385434380,-15064.60160498,0.00026,2]
[374625429,1753385434392,-10402.61003555,0.00026,2]
[374625430,1753385434404,-23484.9444407,0.00026,2]
[374625594,1753385440372,-413.76981852,0.00026,2]
[374625596,1753385440382,-596.55812908,0.00026967,2]
[374625598,1753385440392,-596.55812908,0.0002698,2]
[374625600,1753385440402,-596.55812908,0.00026991,2]
[374625601,1753385440412,-596.55812908,0.0002703,2]
[374625603,1753385440421,-390.62,0.00028922,2]
[374625605,1753385440431,-500.0,0.00029205,2]
[374625607,1753385440440,-170.25,0.0002921,2]
[374625609,1753385440451,-153.43,0.00029759,2]
[374625611,1753385440461,-170.25,0.0003094,2]
[374625613,1753385440470,-159.59,0.00031311,2]
[374625615,1753385440480,-150.0,0.000322,2]
[374625617,1753385440489,-170.25,0.00032671,2]
[374625618,1753385440498,-153.43,0.00032735,2]
[374625620,1753385440508,-181.24,0.00033868,2]
[374625623,1753385440518,-56.71739506,0.00034086,2]
[374627469,1753385533945,159.59,0.00013699,2]
[374627473,1753386245044,300.0,0.00027226,120]
[374627474,1753386269404,374.5756814,0.00027158,120]
[374627475,1753386289818,290.29615308,0.00027158,120]
[374627476,1753386310154,246.75173012,0.00027158,120]
[374627478,1753386330415,209.7389706,0.00027158,120]
[374627479,1753386353787,178.27812501,0.00027158,120]
[374627480,1753386373624,151.53640626,0.00027158,120]
[374627499,1753386538257,159.59,0.00013699,2]
[374627521,1753386631550,-152.32,0.00028062,2]
[374627537,1753386632064,-300.0,0.00028854,120]
[374627539,1753386632074,-300.0,0.00028854,120]
[374627542,1753386632084,-250.0,0.00028854,2]
[374627544,1753386632095,-300.0,0.00029691,120]
[374627547,1753386632104,-300.0,0.00029691,120]
[374627549,1753386632113,-250.0,0.00029691,2]
[374627551,1753386632123,-152.32,0.00029889,2]
[374627553,1753386632132,-510.0,0.00030262,2]
[374627555,1753386632141,-1200.0,0.00030597,2]
[374627557,1753386632150,-300.0,0.00030869,120]
[374627559,1753386632160,-300.0,0.00030869,120]
[374627561,1753386632169,-250.0,0.00030869,2]
[374627563,1753386632178,-482.0,0.00031068,2]
[374627565,1753386632187,-694.673882,0.00031556,2]
[374627567,1753386632196,-152.32,0.00031715,2]
[374627569,1753386632205,-153.44,0.000322,2]
[374627571,1753386632214,-166.41,0.00032444,2]
[374627572,1753386632224,-195.35,0.00032578,2]
[374627573,1753386632233,-1600.0,0.0003258,3]
[374627574,1753386632244,-400.0,0.0003258,3]
[374627575,1753386632253,-500.0,0.00032581,2]
[374627576,1753386632262,-500.0,0.00032581,2]
[374627577,1753386632272,-500.0,0.00032581,2]
[374627578,1753386632281,-500.0,0.00032581,2]
[374627579,1753386632290,-500.0,0.00032581,2]
[374627580,1753386632299,-500.0,0.00032581,2]
[374627581,1753386632308,-500.0,0.00032581,2]
[374627582,1753386632318,-500.0,0.00032581,2]
[374627583,1753386632328,-476.86673305,0.00032581,2]
[374627584,1753386632339,-211.02556333,0.000329,27]
[374627585,1753386632348,-150.0,0.00033,2]
[374627586,1753386632358,-210.45859952,0.00033,7]
[374627587,1753386632367,-510.0,0.00033236,7]
[374627588,1753386632377,-237.722,0.00033262,35]
[374627589,1753386632386,-1297.0,0.00033262,2]
[374627590,1753386632396,-2779.47229663,0.00033262,2]
[374627591,1753386632507,-8037.02770337,0.00033262,2]
[374627592,1753386632516,-203.54,0.000333,2]
[374627593,1753386632525,-400.19,0.00033321,2]
[374627594,1753386632534,-67.15229663,0.00033542,2]
[374627595,1753386632566,-85.16770337,0.00033542,2]
[374627596,1753386632575,-163.61,0.00033551,2]
[374627597,1753386632584,-1593.87582987,0.0003375,2]
[374627598,1753386632596,-1975.64687187,0.0003375,2]
[374627599,1753386632608,-717.54606062,0.0003375,2]
[374627600,1753386632618,-930.20552541,0.0003375,2]
[374627601,1753386632630,-2697.04661459,0.0003375,2]
[374627602,1753386632639,-151.0,0.00034066,2]
[374627603,1753386632650,-151.0,0.00034066,2]
[374627604,1753386632659,-151.0,0.00034066,2]
[374627605,1753386632669,-151.0,0.00034066,2]
[374627606,1753386632678,-151.0,0.00034066,2]
[374627607,1753386632688,-151.0,0.00034066,2]
[374627608,1753386632697,-151.0,0.00034066,2]
[374627609,1753386632707,-151.0,0.00034066,2]
[374627610,1753386632717,-151.0,0.00034066,2]
[374627611,1753386632727,-151.0,0.00034066,2]
[374627612,1753386632737,-151.0,0.00034066,2]
[374627613,1753386632747,-151.0,0.00034066,2]
[374627614,1753386632756,-151.0,0.00034066,2]
[374627615,1753386632766,-151.0,0.00034066,2]
[374627616,1753386632776,-151.0,0.00034066,2]
[374627617,1753386632790,-151.0,0.00034066,2]
[374627618,1753386632810,-151.0,0.00034066,2]
[374627619,1753386632822,-151.0,0.00034066,2]
[374627620,1753386632832,-151.0,0.00034066,2]
[374627621,1753386632843,-151.0,0.00034066,2]
[374627622,1753386632853,-1000.0,0.00034297,2]
[374627623,1753386632863,-180.0,0.00034317,7]
[374627624,1753386632872,-453.79,0.00034324,30]
[374627625,1753386632884,-500.0,0.00034523,30]
[374627626,1753386632893,-902.0,0.00034658,20]
[374627627,1753386632903,-169.4,0.00034689,120]
[374627628,1753386632914,-3627.25214,0.0003475,2]
[374627629,1753386632931,-227.301548,0.00034762,30]
[374627630,1753386632949,-1000.0,0.00034768,2]
[374627631,1753386632959,-200.0,0.00034769,2]
[374627632,1753386632970,-200.0,0.00034769,2]
[374627633,1753386632980,-200.0,0.00034769,2]
[374627634,1753386632990,-200.0,0.00034769,2]
[374627635,1753386633001,-200.0,0.00034769,2]
[374627636,1753386633011,-500.0,0.00034797,30]
[374627637,1753386633020,-1833.89920293,0.000348,2]
[374627638,1753386633030,-163.01,0.00034838,120]
[374627639,1753386633039,-3000.0,0.00034838,60]
[374627640,1753386633049,-1676.2114,0.0003488,2]
[374627641,1753386633059,-1156.0898,0.0003488,2]
[374627642,1753386633068,-590.04365978,0.00034888,2]
[374627643,1753386633080,-152.5975199,0.00034889,15]
[374627644,1753386633090,-1000.0,0.0003489,2]
[374627645,1753386633099,-153.68222379,0.0003489,2]
[374627646,1753386633108,-12163.67589101,0.00034899,17]
[374627647,1753386633121,-12783.79967691,0.00034899,17]
[374627648,1753386633133,-21848.60322473,0.00034899,17]
[374627649,1753386633147,-8129.94207055,0.00034899,17]
[374627650,1753386633158,-6181.37577715,0.00034899,17]
[374627651,1753386633173,-17874.88387192,0.00034899,17]
[374627652,1753386633205,-22111.79405663,0.00034899,17]
[374627653,1753386637459,-151.0,0.000348,2]
[374627654,1753386637469,-151.0,0.0003489,2]
[374627655,1753386637478,-112367.78006641,0.00034899,17]
[374627656,1753386637489,-1000.0,0.000349,12]
[374627657,1753386637498,-1000.0,0.000349,12]
[374627658,1753386637507,-1000.0,0.000349,12]
[374627659,1753386637518,-1417.0,0.000349,12]
[374627660,1753386637529,-1000.0,0.000349,12]
[374627661,1753386637540,-593.21993359,0.000349,2]
[374627662,1753386637573,-899.98836641,0.000349,2]
[374627663,1753386637582,-231.6313,0.000349,2]
[374627664,1753386637592,-877.32587682,0.000349,2]
[374627665,1753386637603,-4122.67412318,0.000349,2]
[374627666,1753386637613,-1833.89920289,0.00034906,2]
[374627667,1753386637623,-203.54,0.00034965,2]
[374627668,1753386637632,-500.0,0.00034973,5]
[374627669,1753386637642,-500.0,0.00034973,5]
[374627670,1753386637651,-500.0,0.00034973,5]
[374627671,1753386637661,-500.0,0.00034973,5]
[374627672,1753386637672,-161.42453429,0.00034973,2]
[374627673,1753386637682,-501.56138439,0.00034973,5]
[374627674,1753386637692,-500.0,0.00034973,2]
[374627675,1753386637701,-28472.36650172,0.0003498,3]
[374627676,1753386637713,-632.10865498,0.0003498,3]
[374627677,1753386637724,-1001.07346756,0.0003498,3]
[374627678,1753386637742,-4403.25009718,0.0003498,3]
[374627679,1753386637774,-891.88415061,0.0003498,3]
[374627681,1753386637785,-1976.54856263,0.0003498,3]
[374627683,1753386637796,-36008.590824,0.0003498,3]
[374627685,1753386637807,-1240.289,0.0003498,3]
[374627686,1753386637822,-4456.57099225,0.0003498,3]
[374627884,1753386640085,-151.0,0.00034973,2]
[374627885,1753386640095,-4408.689305,0.0003498,3]
[374628137,1753386642469,-265.16741592,0.00034289,120]
[374628139,1753386642478,-10870.61726143,0.0003498,3]
[374628141,1753386642491,-1779.51570259,0.0003498,3]
[374628153,1753386642546,-2822.75921789,0.0003498,3]
[374628155,1753386642557,-493.32484812,0.0003498,3]
[374628163,1753386642622,-2650.0,0.0003498,3]
[374628176,1753386642833,-597.56949,0.0003498,3]
[374628178,1753386642847,-4667.89619304,0.0003498,3]
[374628180,1753386642857,-485.76464052,0.0003498,2]
[374628182,1753386642866,-590.04365975,0.00034984,2]
[374628184,1753386642876,-1081.86541949,0.00034988,30]
[374628186,1753386642885,-400.0,0.00034989,2]
[374628188,1753386642895,-285.9433268,0.00034989,7]
[374628191,1753386642905,-500.0,0.00034989,7]
[374628194,1753386642916,-500.0,0.00034989,7]
[374628197,1753386642925,-500.0,0.00034989,7]
[374628200,1753386642935,-500.0,0.00034989,7]
[374628203,1753386642944,-533.7308791,0.00034989,7]
[374628205,1753386642953,-500.0,0.00034989,7]
[374628207,1753386642963,-500.0,0.00034989,7]
[374628209,1753386642972,-500.0,0.00034989,7]
[374628211,1753386642981,-500.0,0.00034989,7]
[374628213,1753386642991,-500.0,0.00034989,7]
[374628215,1753386643000,-500.0,0.00034989,7]
[374628217,1753386643008,-197.59890809,0.00034989,7]
[374628219,1753386643018,-500.0,0.00034989,120]
[374628221,1753386643027,-500.0,0.00034989,120]
[374628223,1753386643037,-500.0,0.00034989,120]
[374628225,1753386643050,-480.0,0.00034989,120]
[374628227,1753386643059,-480.0,0.00034989,120]
[374628229,1753386643071,-500.0,0.00034989,120]
[374628231,1753386643083,-500.0,0.00034989,120]
[374628233,1753386643092,-1000.0,0.00034989,2]
[374628235,1753386643103,-13740.04,0.00034989,7]
[374628238,1753386643113,-735.8635,0.0003499,7]
[374628239,1753386643122,-735.8635,0.0003499,7]
[374628242,1753386643132,-162.166493,0.0003499,7]
[374628243,1753386643141,-162.166493,0.0003499,7]
[374628245,1753386643150,-268432.635673,0.0003499,3]
[374628248,1753386643160,-233548.660261,0.0003499,3]
[374628250,1753386643169,-255.325684,0.0003499,7]
[374628252,1753386643179,-269.34886646,0.0003499,2]
[374628254,1753386643188,-500.0,0.00034999,120]
[374628256,1753386643198,-500.0,0.00034999,120]
[374628258,1753386643207,-1826.33,0.00034999,2]
[374628260,1753386643217,-7536.10435748,0.00034999,2]
[374628261,1753386643226,-499.05192915,0.00034999,7]
[374628263,1753386643236,-24509.94779684,0.00035,2]
[374628265,1753386643246,-735.8635,0.00035,7]
[374628268,1753386643255,-735.8635,0.00035,7]
[374628270,1753386643265,-162.166493,0.00035,7]
[374628272,1753386643274,-162.166493,0.00035,7]
[374628273,1753386643283,-500.0,0.00035,2]
[374628276,1753386643293,-1932.33941454,0.00035,5]
[374628277,1753386643306,-20419.29923088,0.00035,5]
[374628279,1753386643315,-482295.15132586,0.00035,7]
[374628281,1753386643325,-10337.31082,0.00035,45]
[374628283,1753386643334,-1833.89920289,0.00035011,2]
[374628285,1753386643344,-902.0,0.00035015,20]
[374628288,1753386643354,-320.0,0.00035021,3]
[374628290,1753386643364,-153.68222376,0.00035062,2]
[374628292,1753386643373,-590.04365975,0.0003508,2]
[374628294,1753386643382,-4491.32038963,0.00035107,3]
[374628296,1753386643392,-1833.89920289,0.00035117,2]
[374628298,1753386643401,-1280.0,0.00035164,3]
[374628300,1753386643410,-590.04365975,0.00035175,2]
[374628302,1753386643420,-17895.5090449,0.00035193,3]
[374628304,1753386643429,-1833.89920289,0.00035222,2]
[374628306,1753386643438,-153.68222376,0.00035234,2]
[374628308,1753386643450,-590.04365975,0.00035271,2]
[374628310,1753386643459,-600.0,0.00035309,2]
[374628312,1753386643468,-388.1,0.00035309,2]
[374628314,1753386643478,-1833.89920289,0.00035328,2]
[374628315,1753386643487,-993.0,0.00035331,8]
[374628318,1753386643496,-590.04365975,0.00035367,2]
[374628319,1753386643505,-152.32,0.00035368,2]
[374628322,1753386643515,-878.33314568,0.00035377,2]
[374628323,1753386643526,-227.79172398,0.00035385,2]
[374628325,1753386643536,-153.68222376,0.00035406,2]
[374628327,1753386643545,-227.79172398,0.00035431,2]
[374628329,1753386643555,-1833.89920289,0.00035433,2]
[374628332,1753386643565,-168.0,0.00035445,2]
[374628334,1753386643574,-1500.0,0.0003546,2]
[374628336,1753386643584,-590.04365975,0.00035463,2]
[374628338,1753386643593,-227.79172398,0.00035477,2]
[374628340,1753386643603,-502.44382905,0.00035521,5]
[374628341,1753386643612,-500.0,0.00035521,5]
[374628344,1753386643622,-227.79172398,0.00035522,2]
[374628346,1753386643631,-1833.89920289,0.00035539,2]
[374628348,1753386643640,-590.04365975,0.00035558,2]
[374628350,1753386643650,-150.0,0.00035567,2]
[374628352,1753386643659,-227.79172398,0.00035568,2]
[374628354,1753386643668,-153.68222376,0.00035578,2]
[374628356,1753386643677,-150.0,0.00035579,2]
[374628358,1753386643686,-150.0,0.00035586,2]
[374628360,1753386643695,-4491.32038963,0.00035603,3]
[374628362,1753386643704,-227.79172398,0.00035613,2]
[374628364,1753386643713,-150.0,0.00035629,2]
[374628366,1753386643723,-1833.89920289,0.00035644,2]
[374628368,1753386643732,-601.15,0.0003565,7]
[374628370,1753386643742,-590.04365975,0.00035654,2]
[374628372,1753386643751,-500.0,0.00035658,120]
[374628374,1753386643760,-227.79172398,0.00035659,2]
[374628376,1753386643769,-151.0,0.00035659,7]
[374628378,1753386643778,-735.8635,0.00035659,7]
[374628380,1753386643788,-735.8635,0.00035659,7]
[374628382,1753386643797,-162.166493,0.00035659,7]
[374628384,1753386643806,-162.166493,0.00035659,7]
[374628386,1753386643816,-150.0,0.00035672,2]
[374628388,1753386643825,-150.0,0.0003568,2]
[374628390,1753386643838,-150.0,0.00035704,7]
[374628392,1753386643848,-3029.24393131,0.00035704,2]
[374628394,1753386643857,-227.79172398,0.00035704,2]
[374628396,1753386643867,-150.0,0.00035736,2]
[374628398,1753386643876,-166.41,0.00035738,2]
[374628400,1753386643885,-4491.32038963,0.0003574,3]
[374628402,1753386643895,-227.79172398,0.0003575,2]
[374628403,1753386643904,-3627.25214,0.0003575,2]
[374628405,1753386643922,-590.04365975,0.0003575,2]
[374628408,1753386643932,-1833.89920289,0.0003575,2]
[374628409,1753386643942,-153.68222376,0.0003575,2]
[374628411,1753386643951,-300.0,0.00035772,2]
[374628413,1753386643960,-150.0,0.00035788,2]
[374628415,1753386643970,-17895.5090449,0.00035798,3]
[374628418,1753386643980,-300.0,0.000358,12]
[374628419,1753386643990,-165.7,0.000358,33]
[374628422,1753386643999,-200.0,0.000358,12]
[374628424,1753386644009,-378.0,0.000358,2]
[374628426,1753386644019,-57440.0,0.00035808,120]
[374628428,1753386644028,-20265.0,0.00035808,120]
[374628430,1753386644037,-4683.66843082,0.00035818,7]
[374628431,1753386644046,-207.32,0.00035823,120]
[374628433,1753386644056,-336.7380725,0.00035823,2]
[374628436,1753386644065,-202.8685086,0.00035823,2]
[374628438,1753386644076,-162.166493,0.00035823,7]
[374628440,1753386644086,-162.166493,0.00035823,7]
[374628442,1753386644095,-482.53402629,0.00035824,2]
[374628444,1753386644106,-13216.41,0.00035824,7]
[374628446,1753386644116,-545.10471171,0.00035824,120]
[374628448,1753386644125,-500.0,0.00035824,120]
[374628450,1753386644135,-500.0,0.00035824,120]
[374628452,1753386644144,-500.0,0.00035824,120]
[374628454,1753386644154,-192.88,0.00035824,120]
[374628456,1753386644163,-500.0,0.00035824,120]
[374628458,1753386644173,-460.0,0.00035824,120]
[374628460,1753386644182,-500.0,0.00035824,120]
[374628462,1753386644192,-500.0,0.00035824,120]
[374628464,1753386644201,-500.0,0.00035824,120]
[374628466,1753386644211,-500.0,0.00035824,120]
[374628468,1753386644220,-500.0,0.00035824,120]
[374628470,1753386644229,-500.0,0.00035824,120]
[374628472,1753386644239,-460.29041765,0.00035824,120]
[374628474,1753386644249,-19249.92790705,0.00035824,7]
[374628476,1753386644258,-500.0,0.00035824,2]
[374628478,1753386644268,-500.0,0.00035824,2]
[374628480,1753386644277,-500.0,0.00035824,2]
[374628482,1753386644287,-500.0,0.00035824,2]
[374628484,1753386644297,-500.0,0.00035824,2]
[374628486,1753386644307,-500.0,0.00035824,120]
[374628488,1753386644316,-500.0,0.00035824,120]
[374628490,1753386644326,-500.0,0.00035824,120]
[374628492,1753386644337,-197.77,0.00035824,120]
[374628494,1753386644346,-735.8635,0.00035824,7]
[374628496,1753386644357,-735.8635,0.00035824,7]
[374628498,1753386644366,-36581.33834831,0.00035824,7]